bitfinex/quotes_BTCUSD_20251015
["timestamp","ask_amount","ask_price","bid_price","bid_amount"]
[1760548438645,0.75735912,110470.0,110460.0,0.14779222]
[1760548438869,0.38575558,110470.0,110460.0,0.14779222]
[1760548439069,0.61472537,110470.0,110460.0,0.14779222]
[1760548439319,0.5668002,110470.0,110460.0,0.14779222]
[1760548439520,0.6147531,110470.0,110460.0,0.14779222]
[1760548440099,0.5668002,110470.0,110460.0,0.14779222]
[1760548440295,1.49947775,110470.0,110460.0,0.14779222]
[1760548440707,1.43479123,110470.0,110460.0,0.09883585]
[1760548440938,1.49947775,110470.0,110460.0,0.09883585]
[1760548441858,0.75735912,110470.0,110460.0,0.09883585]
[1760548442062,1.49947775,110470.0,110460.0,0.09883585]
[1760548442284,1.49447775,110470.0,110460.0,0.09883585]
[1760548442489,0.75235912,110470.0,110460.0,0.09883585]
[1760548442700,1.49447775,110470.0,110460.0,0.09883585]
[1760548443542,1.42979123,110470.0,110460.0,0.02539628]
[1760548444364,1.49447775,110470.0,110460.0,0.02539628]
[1760548444965,1.49451895,110470.0,110460.0,0.02539628]
[1760548445800,0.75240032,110470.0,110460.0,0.02539628]
[1760548446028,1.49451895,110470.0,110460.0,0.02539628]
[1760548446480,0.38079678,110470.0,110460.0,0.02539628]
[1760548446650,0.6099123,110470.0,110460.0,0.02539628]
[1760548447057,1.44172105,110470.0,110460.0,0.02539628]
[1760548447282,1.42983243,110470.0,110460.0,0.02539628]
[1760548447943,1.43817792,110470.0,110460.0,0.02539628]
[1760548448207,6.50286444,110470.0,110460.0,0.02539628]
[1760548448883,5.76074581,110470.0,110460.0,0.02539628]
[1760548449063,6.50286444,110470.0,110460.0,0.02539628]
[1760548450026,6.46668216,110470.0,110460.0,0.02539628]
[1760548450466,6.50286444,110470.0,110460.0,0.02539628]
[1760548451879,5.76074581,110470.0,110460.0,0.02539628]
[1760548452093,6.50286444,110470.0,110460.0,0.02539628]
[1760548452287,5.76074581,110470.0,110460.0,0.02539628]
[1760548452721,6.50286444,110470.0,110460.0,0.02539628]
[1760548453349,0.18107741,110450.0,110440.0,0.14449423]
[1760548453561,0.2650623,110450.0,110440.0,0.14449423]
[1760548453776,0.24899766,110450.0,110440.0,0.14449423]
[1760548454020,0.06792025,110450.0,110440.0,0.32558803]
[1760548454226,0.24899766,110450.0,110440.0,0.12638485]
[1760548454434,0.25786766,110450.0,110440.0,0.14449423]
[1760548455499,0.30605577,110450.0,110440.0,0.14449423]
[1760548455701,0.30605577,110450.0,110440.0,0.12638485]
[1760548456104,0.30612533,110450.0,110440.0,0.12638485]
[1760548456510,0.07685981,110450.0,110440.0,0.30747865]
[1760548456741,0.24956857,110450.0,110440.0,0.12638485]
[1760548456855,0.07779767,110450.0,110440.0,0.32558803]
[1760548457062,0.10192151,110450.0,110440.0,0.44791853]
[1760548457268,0.06049153,110450.0,110440.0,0.44791853]
[1760548457679,0.03636769,110450.0,110440.0,0.44791853]
[1760548458090,0.03636769,110450.0,110440.0,1.19003716]
[1760548458306,0.00050135,110450.0,110440.0,1.53003716]
[1760548458721,1e-08,110450.0,110440.0,1.53003716]
[1760548459164,1e-08,110450.0,110440.0,1.64539716]
[1760548459375,1e-08,110450.0,110440.0,1.68157944]
[1760548459607,1e-08,110450.0,110440.0,1.56621944]
[1760548460044,1e-08,110450.0,110440.0,1.53003716]
[1760548461158,1e-08,110450.0,110440.0,1.93003716]
[1760548462404,1e-08,110450.0,110440.0,1.18791853]
[1760548462623,1e-08,110450.0,110440.0,1.93003716]
[1760548462833,1e-08,110450.0,110440.0,1.18791853]
[1760548463063,1e-08,110450.0,110440.0,0.78791853]
[1760548463269,1e-08,110450.0,110440.0,0.12638485]
[1760548463686,1e-08,110450.0,110440.0,0.30747865]
[1760548468713,1e-08,110450.0,110440.0,0.39716877]
[1760548469337,1e-08,110450.0,110440.0,0.87726463]
[1760548469754,1e-08,110450.0,110440.0,0.39716877]
[1760548469979,1e-08,110450.0,110440.0,0.96694671]
[1760548470421,1e-08,110450.0,110440.0,0.48685085]
[1760548471498,1e-08,110450.0,110440.0,0.21607497]
[1760548471714,1e-08,110450.0,110440.0,0.30747865]
[1760548471951,0.18107742,110450.0,110440.0,0.12638485]
[1760548472178,1e-08,110450.0,110440.0,0.12638485]
[1760548472391,0.18107742,110450.0,110440.0,0.12638485]
[1760548472822,1e-08,110450.0,110440.0,0.32558803]
[1760548473032,0.67020565,110470.0,110450.0,0.18107575]
[1760548473258,0.18106101,110460.0,110450.0,0.00017965]
[1760548473472,0.19031917,110460.0,110450.0,0.00017965]
[1760548473682,0.18106101,110460.0,110450.0,0.00017965]
[1760548474106,0.18105295,110470.0,110450.0,0.1993648]
[1760548474316,0.18105295,110470.0,110450.0,0.18125706]
[1760548474541,0.18105295,110470.0,110460.0,0.0181061]
[1760548475202,0.18104462,110470.0,110460.0,0.0181061]
[1760548475881,1.04635981,110480.0,110460.0,0.0181061]
[1760548476091,0.18104462,110470.0,110460.0,0.0181061]
[1760548476301,0.56626395,110480.0,110460.0,0.19916711]
[1760548476515,0.62626395,110480.0,110460.0,0.19916711]
[1760548476722,0.18104462,110470.0,110460.0,0.0181061]
[1760548476935,0.18104462,110470.0,110450.0,0.19030949]
[1760548477766,0.18104462,110470.0,110460.0,0.0181061]
[1760548477983,0.18104462,110470.0,110450.0,0.18125706]
[1760548478192,0.18104462,110470.0,110450.0,0.18125606]
[1760548478402,0.18104462,110470.0,110450.0,0.18125706]
[1760548478611,0.18104462,110470.0,110450.0,0.00017965]
[1760548478830,0.18104462,110470.0,110450.0,0.18125566]
[1760548479711,0.18104462,110470.0,110460.0,0.19478301]
[1760548479931,0.18104462,110470.0,110450.0,0.18125566]
[1760548482536,0.18104462,110470.0,110460.0,0.19786701]
[1760548482747,0.18104462,110470.0,110450.0,0.18125566]
[1760548482951,0.34,110480.0,110470.0,0.18104462]
[1760548483173,0.41,110480.0,110470.0,0.18104462]
[1760548483395,0.07,110480.0,110470.0,0.18104462]
[1760548484474,0.25102824,110480.0,110470.0,0.18104462]
[1760548484900,0.25102824,110480.0,110460.0,0.18106101]
[1760548485109,0.25102824,110480.0,110460.0,0.08969012]
[1760548485311,0.74017551,110480.0,110460.0,0.18106101]
[1760548485531,0.18104462,110470.0,110450.0,0.19030953]
[1760548485768,0.18106101,110460.0,110450.0,0.18125661]
[1760548486057,0.18106101,110460.0,110450.0,0.18125706]
[1760548486290,0.66114048,110470.0,110450.0,0.18125706]
[1760548486495,0.18106101,110460.0,110450.0,0.18125706]
[1760548486701,0.18104462,110470.0,110450.0,0.18125706]
[1760548486912,0.18104462,110470.0,110460.0,0.18106101]
[1760548487129,0.67017551,110480.0,110460.0,0.18106101]
[1760548487345,0.71017551,110480.0,110460.0,0.18106101]
[1760548487795,0.18104462,110470.0,110460.0,0.18106101]
[1760548488011,0.18104462,110470.0,110450.0,0.18125706]
[1760548488434,0.19007965,110480.0,110460.0,0.19916711]
[1760548488648,0.25007965,110480.0,110460.0,0.18106101]
[1760548490229,0.18104462,110470.0,110450.0,0.18124961]
[1760548490463,0.18104462,110470.0,110460.0,0.18106101]
[1760548490690,0.19007965,110480.0,110460.0,0.19916711]
[1760548490904,0.24007965,110480.0,110460.0,0.18106101]
[1760548491137,0.18104462,110470.0,110450.0,0.18124961]
[1760548491326,0.18104462,110470.0,110460.0,0.18106101]
[1760548491546,0.67017551,110480.0,110450.0,0.18124961]
[1760548491759,0.18104637,110470.0,110450.0,0.18124961]
[1760548492192,0.66114223,110470.0,110450.0,0.18124961]
[1760548493145,0.18104637,110470.0,110450.0,0.18124961]
[1760548493355,0.66114223,110470.0,110450.0,0.18125706]
[1760548494227,0.18106101,110460.0,110450.0,0.00017965]
[1760548494670,0.83702927,110460.0,110450.0,0.00017965]
[1760548494886,0.35693341,110460.0,110450.0,0.00017965]
[1760548495120,0.80084699,110460.0,110450.0,0.00017965]
[1760548495338,0.35693341,110460.0,110450.0,0.00017965]
[1760548495781,0.30693341,110460.0,110450.0,0.00017965]
[1760548495989,0.18106101,110460.0,110450.0,0.00017965]
[1760548496214,0.70635779,110480.0,110450.0,0.18125706]
[1760548496480,0.52104462,110470.0,110460.0,0.0181061]
[1760548496694,0.52104462,110470.0,110450.0,0.18125706]
[1760548497341,0.67017963,110480.0,110460.0,0.18106101]
[1760548497550,0.67017963,110480.0,110450.0,0.18125706]
[1760548497551,0.18104462,110470.0,110450.0,0.18125706]
[1760548497994,0.18104462,110470.0,110450.0,0.15625706]
[1760548498443,0.18104462,110470.0,110460.0,0.0181061]
[1760548498873,0.19008377,110480.0,110460.0,0.01805219]
[1760548499138,0.19008377,110480.0,110460.0,0.18106101]
[1760548499139,0.20683172,110480.0,110460.0,0.18106101]
[1760548499359,1.01015977,110490.0,110460.0,0.19916711]
[1760548499579,1.11690759,110490.0,110470.0,0.18104319]
[1760548499807,0.63681173,110490.0,110470.0,0.18104319]
[1760548500022,0.18104462,110470.0,110440.0,0.31653303]
[1760548500247,0.19007965,110480.0,110460.0,0.18106006]
[1760548500473,0.19007965,110480.0,110440.0,0.316683]
[1760548500474,0.66114048,110470.0,110440.0,0.316683]
[1760548500695,0.19038472,110460.0,110440.0,0.30762862]
[1760548500955,0.75988283,110470.0,110450.0,0.18107741]
[1760548501156,0.52104508,110470.0,110450.0,0.19918515]
[1760548501368,0.52104508,110470.0,110450.0,0.18107741]
[1760548501594,1.01788608,110470.0,110450.0,0.18107741]
[1760548501807,0.19037308,110460.0,110440.0,0.30762862]
[1760548502018,0.18106101,110460.0,110440.0,0.30762862]
[1760548502657,0.61978743,110470.0,110450.0,0.19918515]
[1760548502866,0.00931207,110460.0,110450.0,0.18107741]
[1760548503086,0.19037308,110460.0,110450.0,0.18107741]
[1760548503304,0.18106133,110460.0,110440.0,0.30762862]
[1760548503537,0.00931207,110460.0,110450.0,0.18107741]
[1760548504205,0.34,110470.0,110460.0,0.19916711]
[1760548504416,0.34,110470.0,110460.0,0.18106101]
[1760548505075,0.34,110470.0,110450.0,0.18107741]
[1760548505076,0.52104514,110470.0,110450.0,0.18107741]
[1760548505288,0.18106183,110460.0,110440.0,0.78772277]
[1760548505547,0.19106183,110460.0,110440.0,0.12653482]
[1760548505756,0.53038948,110450.0,110440.0,0.12653482]
[1760548505970,0.57401019,110450.0,110440.0,0.12653482]
[1760548506203,6.15379617,110450.0,110440.0,0.12653482]
[1760548506421,6.17544034,110450.0,110440.0,0.12653482]
[1760548506628,6.18144267,110450.0,110440.0,0.12653482]
[1760548507981,6.66153853,110450.0,110440.0,0.12653482]
[1760548508427,6.6855953,110450.0,110440.0,0.12653482]
[1760548508642,6.5174678,110440.0,110430.0,0.00080172]
[1760548508876,6.03738834,110430.0,110420.0,0.31501555]
[1760548509094,6.27310772,110430.0,110420.0,0.31501555]
[1760548509318,5.21730888,110420.0,110410.0,0.12602063]
[1760548509535,5.4337495,110420.0,110410.0,0.12602063]
[1760548509752,5.91384536,110420.0,110410.0,0.12602063]
[1760548509969,5.91384536,110420.0,110410.0,0.12102063]
[1760548510192,5.4609919,110420.0,110410.0,0.12102063]
[1760548510415,5.91384536,110420.0,110410.0,0.12102063]
[1760548510657,5.4337495,110420.0,110410.0,0.12102063]
[1760548511761,1.25384536,110420.0,110410.0,0.12102063]
[1760548512269,6.25384536,110420.0,110410.0,0.12102063]
[1760548512915,1.25384536,110420.0,110410.0,0.12102063]
[1760548513354,0.73756722,110420.0,110410.0,0.12102063]
[1760548513765,0.73746199,110420.0,110410.0,0.12102063]
[1760548514211,0.12664527,110420.0,110410.0,0.30216364]
[1760548514425,0.2175344,110440.0,110420.0,0.18111569]
[1760548514426,0.18124719,110440.0,110420.0,0.18111569]
[1760548514645,0.15679534,110440.0,110420.0,0.18112558]
[1760548514864,0.15679534,110440.0,110430.0,0.19922122]
[1760548515072,0.34720645,110440.0,110420.0,0.18112558]
[1760548515279,0.67789438,110440.0,110420.0,0.18112558]
[1760548515490,0.49679534,110440.0,110430.0,0.1811102]
[1760548515910,0.49679534,110440.0,110420.0,0.66122144]
[1760548516123,0.49679534,110440.0,110430.0,0.19922122]
[1760548516337,0.01679534,110440.0,110430.0,0.66120606]
[1760548516565,0.00015031,110440.0,110430.0,0.1811102]
[1760548516773,0.00015031,110440.0,110430.0,0.01811102]
[1760548517193,0.18124411,110440.0,110430.0,0.01811102]
[1760548517402,0.19789862,110440.0,110420.0,0.18112558]
[1760548518079,0.20695331,110440.0,110420.0,0.18112647]
[1760548518348,0.19789862,110440.0,110430.0,0.01325024]
[1760548518576,0.19789862,110440.0,110420.0,0.18112647]
[1760548518786,0.1811102,110430.0,110410.0,0.12102063]
[1760548518998,0.1902988,110440.0,110410.0,0.30216241]
[1760548519205,0.18112074,110430.0,110410.0,0.30216306]
[1760548519414,0.1811266,110420.0,110410.0,0.12102063]
[1760548519655,0.18112074,110430.0,110410.0,0.30216364]
[1760548519869,0.19778304,110430.0,110410.0,0.30216364]
[1760548520072,0.0166623,110430.0,110410.0,0.30216364]
[1760548520284,0.19042239,110430.0,110410.0,0.30216364]
[1760548520503,0.19777262,110430.0,110410.0,0.30216364]
[1760548520960,0.1811266,110420.0,110410.0,0.12102063]
[1760548521164,0.1977889,110420.0,110410.0,0.12102063]
[1760548521371,0.30747902,110420.0,110410.0,0.12102063]
[1760548521790,1.16375716,110420.0,110410.0,0.12102063]
[1760548522457,0.6836613,110420.0,110410.0,0.12102063]
[1760548522874,1.16375716,110420.0,110410.0,0.12102063]
[1760548523288,0.64747902,110420.0,110410.0,0.12102063]
[1760548523947,0.62747902,110420.0,110410.0,0.12102063]
[1760548524199,0.63747902,110420.0,110410.0,0.12102063]
[1760548524421,1.11757488,110420.0,110410.0,0.12102063]
[1760548524644,1.15375716,110420.0,110410.0,0.12102063]
[1760548524911,1.1729604,110420.0,110410.0,0.12102063]
[1760548525125,6.20535292,110420.0,110410.0,0.12102063]
[1760548525330,6.23747639,110420.0,110410.0,0.12102063]
[1760548525745,5.75738053,110420.0,110410.0,0.12102063]
[1760548525948,6.23747639,110420.0,110410.0,0.12102063]
[1760548526614,6.27066406,110420.0,110410.0,0.12102063]
[1760548526833,5.56638244,110410.0,110400.0,0.02878226]
[1760548527046,6.33436033,110410.0,110400.0,0.02878226]
[1760548527258,6.3664838,110410.0,110400.0,0.02878226]
[1760548527694,6.34249318,110410.0,110400.0,0.02878226]
[1760548527899,6.34248467,110410.0,110400.0,0.02878226]
[1760548528321,6.36973261,110410.0,110400.0,0.02878226]
[1760548529185,6.36067546,110410.0,110400.0,0.02878226]
[1760548529392,0.80900742,110410.0,110400.0,0.02878226]
[1760548529607,0.77669867,110410.0,110400.0,0.02878226]
[1760548529818,0.81288095,110410.0,110400.0,0.02878226]
[1760548530045,0.77669867,110410.0,110400.0,0.02878226]
[1760548530699,0.81288095,110410.0,110400.0,0.02878226]
[1760548531778,0.82121305,110410.0,110400.0,0.02878226]
[1760548532718,0.64912097,110410.0,110400.0,0.02878226]
[1760548532938,0.81288095,110410.0,110400.0,0.02878226]
[1760548533595,0.59555566,110410.0,110400.0,0.02878226]
[1760548533813,0.50586554,110410.0,110400.0,0.20994168]
[1760548534059,0.0166623,110410.0,110400.0,0.98783285]
[1760548534513,0.0166623,110410.0,110400.0,0.95370008]
[1760548534725,0.0166623,110410.0,110400.0,0.20994168]
[1760548534944,0.0166623,110410.0,110400.0,0.95370008]
[1760548535618,0.0166623,110410.0,110400.0,0.20994168]
[1760548535834,0.0166623,110410.0,110400.0,0.95370008]
[1760548536056,0.0166623,110410.0,110400.0,0.20994168]
[1760548536520,0.0166623,110410.0,110400.0,0.95370008]
[1760548537366,0.0166623,110410.0,110400.0,0.20994168]
[1760548537824,0.02597437,110410.0,110400.0,0.20994168]
[1760548538032,0.0166623,110410.0,110400.0,0.20994168]
[1760548538254,0.0166623,110410.0,110400.0,0.9853767]
[1760548538467,0.0166623,110410.0,110400.0,1.07506682]
[1760548538680,0.0166623,110410.0,110400.0,0.2996318]
[1760548538896,0.0166623,110410.0,110400.0,0.20994168]
[1760548539353,0.0166623,110410.0,110400.0,1.0433902]
[1760548539604,0.0166623,110410.0,110400.0,0.20994168]
[1760548539830,0.0166623,110410.0,110400.0,0.95370008]
[1760548540058,0.0166623,110410.0,110400.0,1.13307228]
[1760548540273,0.0166623,110410.0,110400.0,1.47307228]
[1760548540539,0.00015031,110440.0,110430.0,0.1811102]
[1760548540767,0.14683712,110440.0,110430.0,0.1811102]
[1760548540982,0.15614919,110440.0,110410.0,0.75281555]
[1760548541223,0.43527465,110440.0,110410.0,0.18114037]
[1760548541447,0.42596258,110440.0,110420.0,0.18112612]
[1760548541674,0.00931207,110430.0,110420.0,0.18112612]
[1760548541890,0.01668681,110430.0,110420.0,0.18112612]
[1760548542336,0.02599888,110430.0,110420.0,0.18112612]
[1760548542550,0.01668681,110430.0,110420.0,0.99035867]
[1760548543196,0.01668681,110430.0,110420.0,1.08004879]
[1760548543860,0.01668681,110430.0,110420.0,1.01457464]
[1760548544320,0.01668681,110430.0,110420.0,1.35457464]
[1760548544539,0.01668681,110430.0,110420.0,1.36376939]
[1760548544989,0.00015031,110440.0,110430.0,0.1811102]
[1760548545199,0.01683756,110440.0,110430.0,1.01455872]
[1760548545443,0.00015031,110440.0,110430.0,0.3604824]
[1760548545655,0.00015031,110440.0,110430.0,1.01455872]
[1760548546090,1e-08,110440.0,110430.0,1.35455872]
[1760548546914,1e-08,110440.0,110430.0,0.61080032]
[1760548547118,1e-08,110440.0,110420.0,0.18112473]
[1760548547329,0.01667193,110440.0,110430.0,1.03266974]
[1760548547540,1e-08,110440.0,110430.0,1.01455872]
[1760548547754,1e-08,110440.0,110420.0,0.18112473]
[1760548547969,0.01667075,110440.0,110420.0,1.01457448]
[1760548548232,0.19777711,110440.0,110420.0,0.27081076]
[1760548548442,0.19777711,110440.0,110420.0,0.1811262]
[1760548548662,0.19777711,110440.0,110420.0,0.18112217]
[1760548549092,0.1811102,110430.0,110410.0,0.19019752]
[1760548549313,0.19778094,110430.0,110410.0,0.19019752]
[1760548550813,0.01667074,110430.0,110410.0,0.19019752]
[1760548551025,0.20709791,110430.0,110410.0,0.19019752]
[1760548551246,0.01667074,110430.0,110420.0,0.19923926]
[1760548551462,0.01667074,110430.0,110420.0,0.1811266]
[1760548552137,0.18109497,110440.0,110420.0,0.1811266]
[1760548552345,0.19775809,110440.0,110420.0,0.1811266]
[1760548552549,0.19775693,110440.0,110420.0,0.1811266]
[1760548552756,0.01666313,110440.0,110430.0,0.1811102]
[1760548552959,0.18109381,110440.0,110430.0,0.1811102]
[1760548553187,0.19775693,110440.0,110420.0,0.1811266]
[1760548553361,0.19775693,110440.0,110410.0,0.93395592]
[1760548553573,0.20775693,110440.0,110410.0,0.18113984]
[1760548553794,0.20775693,110440.0,110420.0,0.18112618]
[1760548553998,0.18111048,110430.0,110400.0,0.20993414]
[1760548554204,0.20708529,110430.0,110410.0,0.18114301]
[1760548554415,0.19777322,110430.0,110410.0,0.18114301]
[1760548554617,0.29746334,110430.0,110410.0,0.18114288]
[1760548555026,0.00931207,110420.0,110410.0,0.18114288]
[1760548555235,0.2708006,110430.0,110410.0,0.18114288]
[1760548555436,0.28746728,110430.0,110410.0,0.18114288]
[1760548555727,0.1901485,110440.0,110420.0,0.1811266]
[1760548555903,0.18111034,110430.0,110410.0,0.18114288]
[1760548556339,0.27078635,110440.0,110420.0,0.1811266]
[1760548556541,0.35667337,110440.0,110420.0,0.19923926]
[1760548556758,0.53776717,110440.0,110410.0,0.19020003]
[1760548557004,0.1811102,110430.0,110410.0,0.19020003]
[1760548557216,0.1811102,110430.0,110410.0,0.18114301]
[1760548557421,0.19779123,110430.0,110410.0,0.18114301]
[1760548557624,0.1811102,110430.0,110410.0,0.18114301]
[1760548557833,0.19778932,110430.0,110410.0,0.18114301]
[1760548558048,0.01667912,110430.0,110420.0,0.19923926]
[1760548558279,0.52109381,110440.0,110430.0,0.1811102]
[1760548558500,0.42969013,110440.0,110430.0,0.1811102]
[1760548558955,0.61078545,110440.0,110420.0,0.1811266]
[1760548559181,0.1811102,110430.0,110420.0,0.1811266]
[1760548559393,0.00931207,110430.0,110420.0,0.1811266]
[1760548559631,0.61078545,110440.0,110420.0,0.1811266]
[1760548559829,0.62748487,110440.0,110420.0,0.1811266]
[1760548560545,0.1811102,110430.0,110420.0,0.1811266]
[1760548560769,1e-08,110440.0,110430.0,0.1811102]
[1760548560980,1e-08,110440.0,110430.0,1.01455872]
[1760548562094,1e-08,110440.0,110430.0,1.35455872]
[1760548563165,1e-08,110440.0,110430.0,1.47003872]
[1760548563448,1e-08,110440.0,110430.0,1.35455872]
[1760548563660,1e-08,110440.0,110430.0,1.4442408]
[1760548564288,1e-08,110440.0,110430.0,0.27080032]
[1760548564726,1e-08,110440.0,110420.0,0.1811266]
[1760548564942,0.19040588,110440.0,110420.0,0.18112544]
[1760548565153,0.01671388,110440.0,110430.0,0.19922122]
[1760548565364,1e-08,110440.0,110430.0,0.1811102]
[1760548565806,1e-08,110440.0,110430.0,1.01455068]
[1760548566025,1e-08,110440.0,110420.0,0.18112544]
[1760548566234,0.19017908,110440.0,110420.0,0.18112519]
[1760548566448,0.20689442,110440.0,110420.0,0.18112519]
[1760548566661,0.1811102,110430.0,110420.0,0.1811266]
[1760548566866,0.19017908,110440.0,110420.0,0.1811266]
[1760548567084,0.01671818,110440.0,110430.0,0.1811102]
[1760548567311,1e-08,110440.0,110430.0,0.1811102]
[1760548567521,0.18109381,110440.0,110430.0,0.1811102]
[1760548567733,0.20712405,110440.0,110420.0,0.1811266]
[1760548567941,0.01671818,110440.0,110420.0,0.1811266]
[1760548568146,0.18109381,110440.0,110430.0,0.19922122]
[1760548568349,0.19781198,110440.0,110430.0,0.1811102]
[1760548568587,0.19781198,110440.0,110420.0,0.1811266]
[1760548568800,0.1811102,110430.0,110410.0,0.18113289]
[1760548569011,0.01671817,110430.0,110410.0,0.18114301]
[1760548569249,0.01672092,110440.0,110430.0,0.1811102]
[1760548569469,0.19781456,110440.0,110430.0,0.1811102]
[1760548569962,0.01672076,110440.0,110430.0,0.1811102]
[1760548570169,0.19040588,110440.0,110420.0,0.1811266]
[1760548570372,0.19781456,110440.0,110420.0,0.1811266]
[1760548570804,0.1811102,110430.0,110420.0,0.18112453]
[1760548571022,0.1901485,110440.0,110410.0,0.19020012]
[1760548571267,0.18112964,110420.0,110400.0,0.29074664]
[1760548571721,0.18114301,110410.0,110400.0,0.29074664]
[1760548571944,0.18112964,110420.0,110400.0,0.02878226]
[1760548572173,0.18112964,110420.0,110400.0,0.22805762]
[1760548572391,0.20784184,110420.0,110410.0,0.18114301]
[1760548572625,0.20784184,110420.0,110400.0,0.20993943]
[1760548572857,0.18114301,110410.0,110400.0,0.02878226]
[1760548573097,0.18112964,110420.0,110400.0,0.20994168]
[1760548573315,0.19784106,110420.0,110400.0,0.20994168]
[1760548573536,0.19045508,110410.0,110400.0,0.02878226]
[1760548573748,0.19785443,110410.0,110400.0,0.02878226]
[1760548573968,0.62754455,110410.0,110400.0,0.02878226]
[1760548574411,1.4005371,110410.0,110400.0,0.02878226]
[1760548574631,5.69296098,110410.0,110400.0,0.02878226]
[1760548574843,5.72538516,110410.0,110400.0,0.02878226]
[1760548575076,6.46914356,110410.0,110400.0,0.02878226]
[1760548575291,5.72538516,110410.0,110400.0,0.02878226]
[1760548575722,6.46913878,110410.0,110400.0,0.02878226]
[1760548575932,0.6567787,110410.0,110400.0,0.02878226]
[1760548576409,0.65675077,110410.0,110400.0,0.02878226]
[1760548576614,0.65675086,110410.0,110400.0,0.02878226]
[1760548577843,6.43669154,110410.0,110400.0,0.02878226]
[1760548578101,0.69293314,110410.0,110400.0,0.02878226]
[1760548579034,6.43669154,110410.0,110400.0,0.02878226]
[1760548579476,6.46076948,110410.0,110400.0,0.02878226]
[1760548579698,6.46910146,110410.0,110400.0,0.02878226]
[1760548580176,5.72534306,110410.0,110400.0,0.02878226]
[1760548580410,6.46076948,110410.0,110400.0,0.02878226]
[1760548581150,6.46909581,110410.0,110400.0,0.02878226]
[1760548581362,6.46076948,110410.0,110400.0,0.02878226]
[1760548581783,6.46909038,110410.0,110400.0,0.02878226]
[1760548581993,6.50121385,110410.0,110400.0,0.02878226]
[1760548582427,5.72533198,110410.0,110400.0,0.02878226]
[1760548582630,6.46909038,110410.0,110400.0,0.02878226]
[1760548583074,5.72533198,110410.0,110400.0,0.02878226]
[1760548583281,0.71701108,110410.0,110400.0,0.02878226]
[1760548583501,1.46076948,110410.0,110400.0,0.02878226]
[1760548583715,0.71701108,110410.0,110400.0,0.02878226]
[1760548584180,5.7974083,110410.0,110400.0,0.02878226]
[1760548584395,5.80859291,110410.0,110400.0,0.02878226]
[1760548584606,6.56140928,110410.0,110400.0,0.02878226]
[1760548584847,5.80859291,110410.0,110400.0,0.02878226]
[1760548585059,0.18678115,110410.0,110400.0,0.02878226]
[1760548585314,0.1163737,110410.0,110400.0,0.20994168]
[1760548585519,0.01668358,110410.0,110400.0,0.20994168]
[1760548585741,1e-08,110440.0,110410.0,0.1811306]
[1760548585949,1e-08,110440.0,110420.0,0.92488388]
[1760548585950,0.19969013,110440.0,110420.0,0.92488388]
[1760548586168,0.11000001,110440.0,110430.0,0.1811102]
[1760548586384,1e-08,110440.0,110430.0,1.35455068]
[1760548586825,1e-08,110440.0,110430.0,0.7004824]
[1760548587032,1e-08,110440.0,110430.0,1.1004824]
[1760548587242,1e-08,110440.0,110430.0,0.67080032]
[1760548587489,1e-08,110440.0,110430.0,1.01455872]
[1760548587696,1e-08,110440.0,110430.0,0.27080032]
[1760548587917,1e-08,110440.0,110430.0,0.1811102]
[1760548588121,1e-08,110440.0,110430.0,0.1561102]
[1760548588545,1e-08,110440.0,110410.0,0.19018775]
[1760548588758,0.09874482,110440.0,110420.0,0.18112344]
[1760548588964,1e-08,110440.0,110420.0,0.18112344]
[1760548589212,0.08969013,110440.0,110420.0,0.1811261]
[1760548589417,0.28079603,110440.0,110420.0,0.18112417]
[1760548589631,0.28078435,110440.0,110420.0,0.18112417]
[1760548589833,0.28078528,110440.0,110420.0,0.18112417]
[1760548590253,0.09969013,110440.0,110420.0,0.18112417]
[1760548590481,0.0990022,110440.0,110430.0,0.1811102]
[1760548590741,0.00931208,110440.0,110430.0,0.1811102]
[1760548591150,1e-08,110440.0,110430.0,0.1811102]
[1760548591559,0.00931208,110440.0,110420.0,0.18112417]
[1760548591802,0.00931208,110440.0,110430.0,0.1811102]
[1760548593278,0.00931208,110440.0,110400.0,0.20994138]
[1760548593279,0.04523779,110430.0,110400.0,0.20994138]
[1760548593493,0.09900219,110420.0,110410.0,0.18114301]
[1760548593937,1e-08,110440.0,110430.0,0.1811102]
[1760548594399,1e-08,110440.0,110430.0,0.66160018]
[1760548595496,1e-08,110440.0,110430.0,0.1811102]
[1760548595746,1e-08,110440.0,110430.0,0.66160018]
[1760548596861,1e-08,110440.0,110430.0,1.23178028]
[1760548597082,1e-08,110440.0,110430.0,1.32146236]
[1760548597303,1e-08,110440.0,110430.0,1.72146236]
[1760548597523,1e-08,110440.0,110430.0,2.06146236]
[1760548597985,1e-08,110440.0,110430.0,2.21336464]
[1760548599479,1e-08,110440.0,110430.0,2.09764464]
[1760548599721,1e-08,110440.0,110430.0,2.21336464]
[1760548600169,1e-08,110440.0,110430.0,2.71697916]
[1760548600383,1e-08,110440.0,110430.0,3.26811289]
[1760548600592,1e-08,110440.0,110430.0,3.15239289]
[1760548600807,1e-08,110440.0,110430.0,3.26811289]
[1760548601019,1e-08,110440.0,110430.0,3.15239289]
[1760548601224,1e-08,110440.0,110430.0,3.26807289]
[1760548601444,1e-08,110440.0,110430.0,3.15239289]
[1760548601653,1e-08,110440.0,110430.0,3.26811289]
[1760548601870,1e-08,110440.0,110430.0,2.21336464]
[1760548602131,1e-08,110440.0,110430.0,2.09764464]
[1760548602780,1e-08,110440.0,110430.0,2.71693916]
[1760548603201,1e-08,110440.0,110430.0,3.26807289]
[1760548603431,1e-08,110440.0,110430.0,3.15239289]
[1760548603702,1e-08,110440.0,110430.0,3.26807289]
[1760548603901,0.0717521,110500.0,110470.0,0.00905223]
[1760548604120,0.07188847,110500.0,110480.0,0.27071836]
[1760548604236,0.18113337,110500.0,110480.0,0.27071836]
[1760548604442,0.18113337,110500.0,110490.0,0.18101185]
[1760548604647,0.18101185,110490.0,110460.0,0.48048998]
[1760548604851,0.18104462,110470.0,110450.0,0.01499999]
[1760548605062,0.18104462,110470.0,110460.0,0.18106101]
[1760548605258,0.18104462,110470.0,110450.0,0.67656036]
[1760548605451,0.18104462,110470.0,110450.0,0.19607038]
[1760548605657,0.19037308,110460.0,110450.0,0.01499999]
[1760548605870,0.10878305,110470.0,110450.0,0.03310773]
[1760548606081,0.073745,110500.0,110460.0,0.66155099]
[1760548606294,0.15372267,110500.0,110490.0,0.18101185]
[1760548606502,0.14543425,110500.0,110490.0,0.18101185]
[1760548606921,0.47671321,110500.0,110490.0,0.66150183]
[1760548607201,0.00013637,110500.0,110490.0,0.7457543]
[1760548607366,2.97555034,110470.0,110460.0,0.56629634]
[1760548607595,2.75743788,110470.0,110460.0,1.25219644]
[1760548607857,2.51936781,110470.0,110460.0,0.78056387]
[1760548608088,2.51936781,110470.0,110460.0,2.14154383]
[1760548608313,2.04804307,110470.0,110460.0,2.23122591]
[1760548608563,1.55187402,110470.0,110460.0,2.14154383]
[1760548608769,1.52460615,110470.0,110460.0,2.02582383]
[1760548609014,1.52460615,110470.0,110460.0,1.66105385]
[1760548609236,0.98207088,110470.0,110460.0,1.54533385]
[1760548609466,0.83052366,110470.0,110460.0,1.66101385]